[Event "Titled Tuesday Blitz July 18 Late 2023"]
[White "Andreikin, Dmitry"]
[Black "Jovic, Stanoje"]
[WhiteFideId "4158814"]
[BlackFideId "905020"]
[WhiteElo "2995"]
[BlackElo "2490"]
[Result "1-0"]
[Round "1"]
[TimeControl "180+2"]
[Date "2023.07.18"]
[WhiteClock "0:02:29"]
[BlackClock "0:00:35"]
[Board "14"]

1. d4 {[%clk 0:02:59]}  Nf6 {[%clk 0:02:59]} 2. c4 {[%clk 0:02:59]}  e6 {[%clk 0:02:59]} 3. Nc3 {[%clk 0:02:57]}  Bb4 {[%clk 0:02:59]} 4. Nf3 {[%clk 0:02:57]}  O-O {[%clk 0:02:57]} 5. Bg5 {[%clk 0:02:56]}  h6 {[%clk 0:02:55]} 6. Bh4 {[%clk 0:02:56]}  b6 {[%clk 0:02:52]} 7. e3 {[%clk 0:02:52]}  Bb7 {[%clk 0:02:49]} 8. Bd3 {[%clk 0:02:52]}  d5 {[%clk 0:02:48]} 9. cxd5 {[%clk 0:02:51]}  exd5 {[%clk 0:02:47]} 10. O-O {[%clk 0:02:51]}  Re8 {[%clk 0:02:42]} 11. Ne5 {[%clk 0:02:51]}  Bxc3 {[%clk 0:02:28]} 12. bxc3 {[%clk 0:02:50]}  Re6 {[%clk 0:02:18]} 13. Bf5 {[%clk 0:02:35]}  Rd6 {[%clk 0:02:16]} 14. Ng4 {[%clk 0:02:34]}  Nbd7 {[%clk 0:02:03]} 15. Bxd7 {[%clk 0:02:32]}  Rxd7 {[%clk 0:02:01]} 16. Bxf6 {[%clk 0:02:31]}  gxf6 {[%clk 0:01:58]} 17. Nxh6+ {[%clk 0:02:31]}  Kf8 {[%clk 0:01:50]} 18. Qh5 {[%clk 0:02:30]}  Rd6 {[%clk 0:00:35]} 19. Qxf7# {[%clk 0:02:29]} 1-0


[Site "https://www.chess.com"]

[Event "Titled Tuesday Blitz July 18 Late 2023"]
[White "Kramnik, Vladimir"]
[Black "CatLivesMatter"]
[WhiteFideId "4101588"]
[WhiteElo "2983"]
[BlackElo "2484"]
[Result "1-0"]
[Round "1"]
[TimeControl "180+2"]
[Date "2023.07.18"]
[WhiteClock "0:01:32"]
[BlackClock "0:01:02"]
[Board "18"]

1. Nf3 {[%clk 0:02:51]}  Nf6 {[%clk 0:02:59]} 2. g3 {[%clk 0:02:51]}  g6 {[%clk 0:02:58]} 3. Bg2 {[%clk 0:02:51]}  Bg7 {[%clk 0:02:56]} 4. O-O {[%clk 0:02:52]}  O-O {[%clk 0:02:56]} 5. c4 {[%clk 0:02:52]}  d6 {[%clk 0:02:55]} 6. Nc3 {[%clk 0:02:50]}  Nc6 {[%clk 0:02:56]} 7. d3 {[%clk 0:02:50]}  e5 {[%clk 0:02:55]} 8. b3 {[%clk 0:02:49]}  Nd7 {[%clk 0:02:54]} 9. Bb2 {[%clk 0:02:47]}  f5 {[%clk 0:02:52]} 10. e3 {[%clk 0:02:44]}  Nf6 {[%clk 0:02:50]} 11. Nd2 {[%clk 0:02:33]}  Be6 {[%clk 0:02:45]} 12. a3 {[%clk 0:02:31]}  Rb8 {[%clk 0:02:39]} 13. Nd5 {[%clk 0:02:29]}  Ne7 {[%clk 0:02:36]} 14. Nxf6+ {[%clk 0:02:27]}  Bxf6 {[%clk 0:02:37]} 15. f4 {[%clk 0:02:22]}  c6 {[%clk 0:02:27]} 16. Nf3 {[%clk 0:02:14]}  Qc7 {[%clk 0:02:10]} 17. Qd2 {[%clk 0:02:03]}  exf4 {[%clk 0:02:05]} 18. exf4 {[%clk 0:02:01]}  Qb6+ {[%clk 0:01:56]} 19. Kh1 {[%clk 0:01:59]}  Qxb3 {[%clk 0:01:54]} 20. Bxf6 {[%clk 0:01:51]}  Rxf6 {[%clk 0:01:53]} 21. Rfe1 {[%clk 0:01:46]}  Re8 {[%clk 0:01:39]} 22. Nd4 {[%clk 0:01:44]}  Qa4 {[%clk 0:01:35]} 23. Nxe6 {[%clk 0:01:41]}  Nc8 {[%clk 0:01:26]} 24. Ng5 {[%clk 0:01:37]}  Ref8 {[%clk 0:01:23]} 25. Qc3 {[%clk 0:01:34]}  h6 {[%clk 0:01:19]} 26. Ne6 {[%clk 0:01:33]}  Nb6 {[%clk 0:01:02]} 27. Nxf8 {[%clk 0:01:32]} 1-0


[Site "https://www.chess.com"]

[Event "Titled Tuesday Blitz July 18 Late 2023"]
[White "Horcajuelo Rocamora, Martin"]
[Black "Svane, Rasmus"]
[WhiteFideId "24573027"]
[BlackFideId "4657101"]
[WhiteElo "2476"]
[BlackElo "2968"]
[Result "0-1"]
[Round "1"]
[TimeControl "180+2"]
[Date "2023.07.18"]
[WhiteClock "0:00:15"]
[BlackClock "0:00:30"]
[Board "21"]

1. e4 {[%clk 0:02:56]}  c6 {[%clk 0:02:59]} 2. d4 {[%clk 0:02:26]}  d5 {[%clk 0:02:58]} 3. exd5 {[%clk 0:02:27]}  cxd5 {[%clk 0:02:59]} 4. Bd3 {[%clk 0:02:26]}  Nc6 {[%clk 0:02:59]} 5. c3 {[%clk 0:02:25]}  Nf6 {[%clk 0:02:59]} 6. Bf4 {[%clk 0:02:23]}  Bg4 {[%clk 0:02:59]} 7. Qb3 {[%clk 0:02:22]}  Qd7 {[%clk 0:03:00]} 8. Nd2 {[%clk 0:02:20]}  e6 {[%clk 0:03:00]} 9. h3 {[%clk 0:02:19]}  Bh5 {[%clk 0:02:53]} 10. Ngf3 {[%clk 0:02:19]}  Bd6 {[%clk 0:02:53]} 11. Bxd6 {[%clk 0:02:18]}  Qxd6 {[%clk 0:02:54]} 12. O-O {[%clk 0:02:17]}  O-O {[%clk 0:02:54]} 13. Rfe1 {[%clk 0:02:17]}  Qc7 {[%clk 0:02:54]} 14. a4 {[%clk 0:02:13]}  Rab8 {[%clk 0:02:52]} 15. Qa3 {[%clk 0:02:10]}  Rfc8 {[%clk 0:02:46]} 16. Rac1 {[%clk 0:02:08]}  Bg6 {[%clk 0:02:44]} 17. Bxg6 {[%clk 0:02:07]}  hxg6 {[%clk 0:02:45]} 18. b4 {[%clk 0:02:07]}  Ne7 {[%clk 0:02:36]} 19. Ne5 {[%clk 0:02:03]}  Nf5 {[%clk 0:02:35]} 20. Nb3 {[%clk 0:01:42]}  Qd8 {[%clk 0:02:29]} 21. Nc5 {[%clk 0:01:41]}  Rc7 {[%clk 0:02:16]} 22. b5 {[%clk 0:01:37]}  Nd6 {[%clk 0:02:05]} 23. Qb4 {[%clk 0:01:35]}  Nde4 {[%clk 0:02:02]} 24. Nxe4 {[%clk 0:01:25]}  dxe4 {[%clk 0:01:49]} 25. Qb2 {[%clk 0:01:21]}  Qd6 {[%clk 0:01:16]} 26. c4 {[%clk 0:01:07]}  Rd8 {[%clk 0:01:15]} 27. Rcd1 {[%clk 0:00:49]}  Nd7 {[%clk 0:01:14]} 28. Nxd7 {[%clk 0:00:36]}  Qxd7 {[%clk 0:01:15]} 29. Qb4 {[%clk 0:00:34]}  f5 {[%clk 0:01:09]} 30. d5 {[%clk 0:00:33]}  Qd6 {[%clk 0:00:59]} 31. Qb3 {[%clk 0:00:27]}  e5 {[%clk 0:00:56]} 32. a5 {[%clk 0:00:23]}  Rdc8 {[%clk 0:00:56]} 33. Rc1 {[%clk 0:00:23]}  b6 {[%clk 0:00:55]} 34. axb6 {[%clk 0:00:21]}  axb6 {[%clk 0:00:56]} 35. Re2 {[%clk 0:00:22]}  Kh7 {[%clk 0:00:55]} 36. Ra2 {[%clk 0:00:21]}  Rc5 {[%clk 0:00:53]} 37. Rcc2 {[%clk 0:00:15]}  Qc7 {[%clk 0:00:45]} 38. h4 {[%clk 0:00:16]}  Rxc4 {[%clk 0:00:44]} 39. d6 {[%clk 0:00:17]}  Qc5 {[%clk 0:00:37]} 40. d7 {[%clk 0:00:17]}  Rxc2 {[%clk 0:00:38]} 41. dxc8=Q {[%clk 0:00:17]}  Rc1+ {[%clk 0:00:38]} 42. Kh2 {[%clk 0:00:17]}  Qxc8 {[%clk 0:00:38]} 43. Ra7 {[%clk 0:00:17]}  Qd8 {[%clk 0:00:34]} 44. Kh3 {[%clk 0:00:15]}  Rh1+ {[%clk 0:00:30]} 0-1


[Site "https://www.chess.com"]

[Event "Titled Tuesday Blitz July 18 Late 2023"]
[White "He, Anthony"]
[Black "JERO-8914"]
[WhiteFideId "2088215"]
[WhiteElo "2965"]
[BlackElo "2475"]
[Result "1-0"]
[Round "1"]
[TimeControl "180+2"]
[Date "2023.07.18"]
[WhiteClock "0:00:19"]
[BlackClock "0:00:17"]
[Board "22"]

1. d4 {[%clk 0:03:00]}  Nf6 {[%clk 0:02:57]} 2. Nc3 {[%clk 0:03:00]}  d5 {[%clk 0:02:57]} 3. Bf4 {[%clk 0:02:58]}  Bf5 {[%clk 0:02:56]} 4. e3 {[%clk 0:02:54]}  e6 {[%clk 0:02:56]} 5. Nf3 {[%clk 0:02:53]}  a6 {[%clk 0:02:53]} 6. Ne5 {[%clk 0:02:53]}  c5 {[%clk 0:02:52]} 7. g4 {[%clk 0:02:53]}  Be4 {[%clk 0:02:48]} 8. f3 {[%clk 0:02:50]}  Bg6 {[%clk 0:02:47]} 9. h4 {[%clk 0:02:50]}  h5 {[%clk 0:02:43]} 10. Nxg6 {[%clk 0:02:50]}  fxg6 {[%clk 0:02:43]} 11. g5 {[%clk 0:02:51]}  Ng8 {[%clk 0:02:42]} 12. Bd3 {[%clk 0:02:50]}  Ne7 {[%clk 0:02:41]} 13. dxc5 {[%clk 0:02:42]}  Nd7 {[%clk 0:02:38]} 14. b4 {[%clk 0:02:41]}  Nf5 {[%clk 0:02:24]} 15. e4 {[%clk 0:02:41]}  dxe4 {[%clk 0:02:20]} 16. Bxe4 {[%clk 0:02:37]}  Qc8 {[%clk 0:02:19]} 17. Qd2 {[%clk 0:02:32]}  a5 {[%clk 0:02:18]} 18. Nb5 {[%clk 0:02:12]}  e5 {[%clk 0:02:10]} 19. Bh2 {[%clk 0:01:48]}  axb4 {[%clk 0:02:09]} 20. Rd1 {[%clk 0:01:30]}  Bxc5 {[%clk 0:02:04]} 21. Qd5 {[%clk 0:01:23]}  Nb6 {[%clk 0:01:39]} 22. Qxe5+ {[%clk 0:01:21]}  Kf7 {[%clk 0:01:39]} 23. Bd5+ {[%clk 0:01:07]}  Nxd5 {[%clk 0:01:37]} 24. Qxd5+ {[%clk 0:01:08]}  Qe6+ {[%clk 0:01:35]} 25. Qxe6+ {[%clk 0:01:08]}  Kxe6 {[%clk 0:01:36]} 26. Nc7+ {[%clk 0:01:09]}  Kf7 {[%clk 0:01:36]} 27. Rd7+ {[%clk 0:01:07]}  Be7 {[%clk 0:01:29]} 28. Nxa8 {[%clk 0:01:07]}  Rxa8 {[%clk 0:01:30]} 29. Rxb7 {[%clk 0:01:06]}  Rxa2 {[%clk 0:01:29]} 30. Kd2 {[%clk 0:01:07]}  Nd4 {[%clk 0:01:15]} 31. Kd3 {[%clk 0:01:05]}  Nf5 {[%clk 0:01:07]} 32. Be5 {[%clk 0:01:03]}  Ra3+ {[%clk 0:01:06]} 33. Kc4 {[%clk 0:00:49]}  Kf8 {[%clk 0:01:00]} 34. Ra1 {[%clk 0:00:44]}  Rxf3 {[%clk 0:00:53]} 35. Kd5 {[%clk 0:00:37]}  Kf7 {[%clk 0:00:51]} 36. Raa7 {[%clk 0:00:36]}  Rf1 {[%clk 0:00:48]} 37. Rxb4 {[%clk 0:00:35]}  Rd1+ {[%clk 0:00:44]} 38. Kc6 {[%clk 0:00:34]}  Ke6 {[%clk 0:00:44]} 39. Re4 {[%clk 0:00:33]}  Kf7 {[%clk 0:00:33]} 40. c4 {[%clk 0:00:33]}  Kg8 {[%clk 0:00:31]} 41. Bc3 {[%clk 0:00:23]}  Rd6+ {[%clk 0:00:27]} 42. Kb5 {[%clk 0:00:24]}  Bd8 {[%clk 0:00:19]} 43. Re8+ {[%clk 0:00:22]}  Kh7 {[%clk 0:00:20]} 44. c5 {[%clk 0:00:22]}  Rd3 {[%clk 0:00:19]} 45. Be5 {[%clk 0:00:20]}  Nxh4 {[%clk 0:00:17]} 46. Rxg7# {[%clk 0:00:19]} 1-0


[Site "https://www.chess.com"]

[Event "Titled Tuesday Blitz July 18 Late 2023"]
[White "Van Foreest, Machteld"]
[Black "Xiong, Jeffery"]
[WhiteFideId "1051563"]
[BlackFideId "2047640"]
[WhiteElo "2475"]
[BlackElo "2964"]
[Result "0-1"]
[Round "1"]
[TimeControl "180+2"]
[Date "2023.07.18"]
[WhiteClock "0:00:09"]
[BlackClock "0:00:49"]
[Board "23"]

1. e4 {[%clk 0:03:00]}  c6 {[%clk 0:02:59]} 2. Nf3 {[%clk 0:03:00]}  d5 {[%clk 0:02:59]} 3. d3 {[%clk 0:03:00]}  Qc7 {[%clk 0:02:58]} 4. Nc3 {[%clk 0:02:58]}  dxe4 {[%clk 0:02:55]} 5. dxe4 {[%clk 0:02:53]}  e5 {[%clk 0:02:55]} 6. Be3 {[%clk 0:02:45]}  Nf6 {[%clk 0:02:50]} 7. h3 {[%clk 0:02:44]}  Be7 {[%clk 0:02:47]} 8. a4 {[%clk 0:02:31]}  O-O {[%clk 0:02:47]} 9. Bc4 {[%clk 0:02:31]}  Nbd7 {[%clk 0:02:23]} 10. O-O {[%clk 0:02:30]}  Nc5 {[%clk 0:02:24]} 11. Bxc5 {[%clk 0:02:22]}  Bxc5 {[%clk 0:02:23]} 12. Qe2 {[%clk 0:02:23]}  Bd7 {[%clk 0:02:09]} 13. Rfd1 {[%clk 0:02:17]}  Rad8 {[%clk 0:02:09]} 14. Rab1 {[%clk 0:02:16]}  a5 {[%clk 0:02:08]} 15. Nh4 {[%clk 0:02:13]}  Bc8 {[%clk 0:02:01]} 16. Nf5 {[%clk 0:02:11]}  g6 {[%clk 0:01:59]} 17. Rxd8 {[%clk 0:02:00]}  Qxd8 {[%clk 0:02:00]} 18. Rd1 {[%clk 0:01:59]}  Qc7 {[%clk 0:01:58]} 19. Nh4 {[%clk 0:01:44]}  Qb6 {[%clk 0:01:49]} 20. b3 {[%clk 0:01:41]}  Kg7 {[%clk 0:01:45]} 21. Nf3 {[%clk 0:01:37]}  Re8 {[%clk 0:01:31]} 22. Na2 {[%clk 0:01:16]}  h6 {[%clk 0:01:25]} 23. Nc1 {[%clk 0:01:16]}  Qc7 {[%clk 0:01:21]} 24. Nd3 {[%clk 0:01:16]}  Bd6 {[%clk 0:01:20]} 25. c3 {[%clk 0:01:12]}  Bd7 {[%clk 0:01:19]} 26. b4 {[%clk 0:01:12]}  Ra8 {[%clk 0:01:19]} 27. Nc5 {[%clk 0:01:03]}  axb4 {[%clk 0:01:06]} 28. Nxd7 {[%clk 0:00:56]}  Nxd7 {[%clk 0:01:07]} 29. cxb4 {[%clk 0:00:52]}  Bxb4 {[%clk 0:01:06]} 30. Bxf7 {[%clk 0:00:52]}  Nb6 {[%clk 0:01:05]} 31. Qb2 {[%clk 0:00:51]}  Bd6 {[%clk 0:01:00]} 32. Rxd6 {[%clk 0:00:44]}  Qxd6 {[%clk 0:00:54]} 33. Qxb6 {[%clk 0:00:43]}  Rxa4 {[%clk 0:00:55]} 34. Qxb7 {[%clk 0:00:41]}  Rb4 {[%clk 0:00:55]} 35. Qa7 {[%clk 0:00:40]}  Kf6 {[%clk 0:00:52]} 36. Be8 {[%clk 0:00:38]}  Qe6 {[%clk 0:00:49]} 37. Bd7 {[%clk 0:00:34]}  Qe7 {[%clk 0:00:48]} 38. Qc7 {[%clk 0:00:29]}  Rb1+ {[%clk 0:00:48]} 39. Kh2 {[%clk 0:00:29]}  Rd1 {[%clk 0:00:49]} 40. Qxc6+ {[%clk 0:00:28]}  Rd6 {[%clk 0:00:49]} 41. Qc8 {[%clk 0:00:11]}  Rxd7 {[%clk 0:00:49]} 42. Qh8+ {[%clk 0:00:10]}  Qg7 {[%clk 0:00:49]} 43. Qxg7+ {[%clk 0:00:10]}  Rxg7 {[%clk 0:00:49]} 44. Nxe5 {[%clk 0:00:09]}  Kxe5 {[%clk 0:00:49]} 0-1


[Site "https://www.chess.com"]

[Event "Titled Tuesday Blitz July 18 Late 2023"]
[White "Van Foreest, Jorden"]
[Black "Petukhov, Dmitry"]
[WhiteFideId "1039784"]
[BlackFideId "4142748"]
[WhiteElo "2947"]
[BlackElo "2474"]
[Result "1-0"]
[Round "1"]
[TimeControl "180+2"]
[Date "2023.07.18"]
[WhiteClock "0:00:38"]
[BlackClock "0:00:00"]
[Board "26"]

1. e4 {[%clk 0:02:54]}  c5 {[%clk 0:02:59]} 2. Nc3 {[%clk 0:02:54]}  Nc6 {[%clk 0:02:59]} 3. Nf3 {[%clk 0:02:54]}  d6 {[%clk 0:02:56]} 4. Bb5 {[%clk 0:02:51]}  Bd7 {[%clk 0:02:56]} 5. O-O {[%clk 0:02:50]}  a6 {[%clk 0:02:56]} 6. Bxc6 {[%clk 0:02:50]}  Bxc6 {[%clk 0:02:56]} 7. d4 {[%clk 0:02:50]}  cxd4 {[%clk 0:02:55]} 8. Nxd4 {[%clk 0:02:51]}  e5 {[%clk 0:02:54]} 9. Nf5 {[%clk 0:02:50]}  g6 {[%clk 0:02:52]} 10. Ne3 {[%clk 0:02:49]}  Nf6 {[%clk 0:02:49]} 11. Qd3 {[%clk 0:02:49]}  Bh6 {[%clk 0:02:35]} 12. Nc4 {[%clk 0:02:45]}  Bf8 {[%clk 0:02:32]} 13. Bg5 {[%clk 0:02:44]}  h6 {[%clk 0:02:32]} 14. Bh4 {[%clk 0:02:41]}  g5 {[%clk 0:02:32]} 15. Bg3 {[%clk 0:02:41]}  b5 {[%clk 0:02:26]} 16. Ne3 {[%clk 0:02:35]}  b4 {[%clk 0:02:14]} 17. Ncd5 {[%clk 0:02:35]}  Nxd5 {[%clk 0:02:15]} 18. Nxd5 {[%clk 0:02:18]}  Bb5 {[%clk 0:02:15]} 19. c4 {[%clk 0:02:09]}  bxc3 {[%clk 0:02:13]} 20. Qxc3 {[%clk 0:02:10]}  Rc8 {[%clk 0:02:09]} 21. Nf6+ {[%clk 0:02:10]}  Ke7 {[%clk 0:02:06]} 22. Nd5+ {[%clk 0:02:10]}  Ke8 {[%clk 0:02:02]} 23. Qb3 {[%clk 0:02:08]}  Bxf1 {[%clk 0:02:01]} 24. Rxf1 {[%clk 0:02:09]}  Be7 {[%clk 0:01:55]} 25. f3 {[%clk 0:01:52]}  Kf8 {[%clk 0:01:50]} 26. Qb7 {[%clk 0:01:52]}  Rb8 {[%clk 0:01:30]} 27. Qxa6 {[%clk 0:01:52]}  Rxb2 {[%clk 0:01:26]} 28. Qa7 {[%clk 0:01:43]}  Bf6 {[%clk 0:01:26]} 29. Rc1 {[%clk 0:01:27]}  Kg7 {[%clk 0:01:24]} 30. Rc7 {[%clk 0:01:26]}  Rf8 {[%clk 0:01:21]} 31. h3 {[%clk 0:01:26]}  Qb8 {[%clk 0:01:17]} 32. Qa3 {[%clk 0:01:14]}  Rd8 {[%clk 0:00:59]} 33. Kh2 {[%clk 0:01:12]}  h5 {[%clk 0:00:56]} 34. Be1 {[%clk 0:01:06]}  g4 {[%clk 0:00:55]} 35. fxg4 {[%clk 0:00:51]}  Bg5 {[%clk 0:00:46]} 36. Qf3 {[%clk 0:00:43]}  Bf4+ {[%clk 0:00:39]} 37. Bg3 {[%clk 0:00:41]}  Bxg3+ {[%clk 0:00:36]} 38. Kxg3 {[%clk 0:00:40]}  h4+ {[%clk 0:00:17]} 39. Kh2 {[%clk 0:00:37]}  Qxc7 {[%clk 0:00:11]} 40. Qf6+ {[%clk 0:00:37]}  Kf8 {[%clk 0:00:09]} 41. Nxc7 {[%clk 0:00:38]}  Ra8 {[%clk 0:00:00]} 42. Qh8+ {[%clk 0:00:38]} 1-0


[Site "https://www.chess.com"]

[Event "Titled Tuesday Blitz July 18 Late 2023"]
[White "Roberson, Peter T"]
[Black "Matlakov, Maxim"]
[WhiteFideId "412384"]
[BlackFideId "4168003"]
[WhiteElo "2472"]
[BlackElo "2946"]
[Result "0-1"]
[Round "1"]
[TimeControl "180+2"]
[Date "2023.07.18"]
[WhiteClock "0:00:50"]
[BlackClock "0:01:30"]
[Board "27"]

1. e4 {[%clk 0:03:00]}  e5 {[%clk 0:02:58]} 2. Nf3 {[%clk 0:03:00]}  Nc6 {[%clk 0:02:58]} 3. Bb5 {[%clk 0:03:01]}  a6 {[%clk 0:02:58]} 4. Ba4 {[%clk 0:03:01]}  Nge7 {[%clk 0:02:59]} 5. d4 {[%clk 0:02:56]}  exd4 {[%clk 0:02:58]} 6. Nxd4 {[%clk 0:02:57]}  Nxd4 {[%clk 0:02:56]} 7. Qxd4 {[%clk 0:02:56]}  Ng6 {[%clk 0:02:57]} 8. O-O {[%clk 0:02:48]}  b5 {[%clk 0:02:56]} 9. Bb3 {[%clk 0:02:48]}  Bb7 {[%clk 0:02:56]} 10. Qc3 {[%clk 0:02:02]}  Bd6 {[%clk 0:02:23]} 11. f4 {[%clk 0:01:55]}  Qe7 {[%clk 0:01:51]} 12. Qxg7 {[%clk 0:01:22]}  O-O-O {[%clk 0:01:49]} 13. Bd5 {[%clk 0:01:12]}  Bxd5 {[%clk 0:01:37]} 14. exd5 {[%clk 0:01:12]}  Bc5+ {[%clk 0:01:37]} 15. Kh1 {[%clk 0:01:10]}  Qe2 {[%clk 0:01:38]} 16. Nd2 {[%clk 0:01:06]}  Rhg8 {[%clk 0:01:33]} 17. Qc3 {[%clk 0:00:53]}  Nh4 {[%clk 0:01:33]} 18. Qh3 {[%clk 0:00:50]}  Rxg2 {[%clk 0:01:31]} 19. Qxh4 {[%clk 0:00:50]}  Qxf1+ {[%clk 0:01:30]} 20. Nxf1 {[%clk 0:00:50]}  Rg1# {[%clk 0:01:30]} 0-1


[Site "https://www.chess.com"]

[Event "Titled Tuesday Blitz July 18 Late 2023"]
[White "Alboredo, Julia"]
[Black "Antipov, Mikhail Al."]
[WhiteFideId "2124807"]
[BlackFideId "4107012"]
[WhiteElo "2469"]
[BlackElo "2925"]
[Result "0-1"]
[Round "1"]
[TimeControl "180+2"]
[Date "2023.07.18"]
[WhiteClock "0:01:00"]
[BlackClock "0:01:43"]
[Board "29"]

1. e4 {[%clk 0:02:59]}  c5 {[%clk 0:02:49]} 2. Nf3 {[%clk 0:02:59]}  Nc6 {[%clk 0:02:48]} 3. Bc4 {[%clk 0:02:57]}  e6 {[%clk 0:02:41]} 4. O-O {[%clk 0:02:56]}  Nf6 {[%clk 0:02:42]} 5. Re1 {[%clk 0:02:52]}  Qc7 {[%clk 0:02:40]} 6. Nc3 {[%clk 0:02:50]}  a6 {[%clk 0:02:40]} 7. a4 {[%clk 0:02:50]}  Bd6 {[%clk 0:02:38]} 8. h3 {[%clk 0:02:36]}  g5 {[%clk 0:02:32]} 9. d4 {[%clk 0:02:24]}  cxd4 {[%clk 0:02:30]} 10. Nxd4 {[%clk 0:02:23]}  Rg8 {[%clk 0:02:23]} 11. Ndb5 {[%clk 0:01:39]}  axb5 {[%clk 0:02:22]} 12. Nxb5 {[%clk 0:01:40]}  Bh2+ {[%clk 0:02:22]} 13. Kh1 {[%clk 0:01:40]}  Qe5 {[%clk 0:02:17]} 14. Bd2 {[%clk 0:01:32]}  Qb8 {[%clk 0:01:43]} 15. Bc3 {[%clk 0:01:23]}  Be5 {[%clk 0:01:42]} 16. Bxe5 {[%clk 0:01:17]}  Qxe5 {[%clk 0:01:43]} 17. Nd6+ {[%clk 0:01:17]}  Ke7 {[%clk 0:01:43]} 18. c3 {[%clk 0:01:00]}  Qxd6 {[%clk 0:01:43]} 0-1


[Site "https://www.chess.com"]

[Event "Titled Tuesday Blitz July 18 Late 2023"]
[White "Anton Guijarro, David"]
[Black "WindWhistler11"]
[WhiteFideId "2285525"]
[WhiteElo "2925"]
[BlackElo "2468"]
[Result "1-0"]
[Round "1"]
[TimeControl "180+2"]
[Date "2023.07.18"]
[WhiteClock "0:00:42"]
[BlackClock "0:00:07"]
[Board "30"]

1. d4 {[%clk 0:02:59]}  Nf6 {[%clk 0:02:59]} 2. c3 {[%clk 0:03:00]}  e6 {[%clk 0:02:59]} 3. Bg5 {[%clk 0:03:00]}  Be7 {[%clk 0:02:56]} 4. Nd2 {[%clk 0:03:00]}  d5 {[%clk 0:02:52]} 5. e3 {[%clk 0:03:00]}  b6 {[%clk 0:02:52]} 6. Ngf3 {[%clk 0:03:00]}  Bb7 {[%clk 0:02:52]} 7. Bd3 {[%clk 0:02:58]}  Nbd7 {[%clk 0:02:49]} 8. O-O {[%clk 0:02:54]}  O-O {[%clk 0:02:48]} 9. a4 {[%clk 0:02:47]}  a6 {[%clk 0:02:46]} 10. h3 {[%clk 0:02:47]}  c5 {[%clk 0:02:43]} 11. Bf4 {[%clk 0:02:46]}  Ne4 {[%clk 0:02:27]} 12. Qe2 {[%clk 0:02:45]}  f5 {[%clk 0:02:23]} 13. Rfd1 {[%clk 0:02:30]}  c4 {[%clk 0:02:17]} 14. Bc2 {[%clk 0:02:28]}  a5 {[%clk 0:02:10]} 15. Ne5 {[%clk 0:02:25]}  Bh4 {[%clk 0:02:00]} 16. Rf1 {[%clk 0:02:02]}  Bf6 {[%clk 0:01:47]} 17. Nxd7 {[%clk 0:02:01]}  Qxd7 {[%clk 0:01:47]} 18. Nf3 {[%clk 0:02:01]}  Qe8 {[%clk 0:01:24]} 19. Ne5 {[%clk 0:01:54]}  g5 {[%clk 0:01:16]} 20. Bh2 {[%clk 0:01:53]}  Bg7 {[%clk 0:01:16]} 21. f3 {[%clk 0:01:45]}  Nf6 {[%clk 0:01:15]} 22. g4 {[%clk 0:01:38]}  Nd7 {[%clk 0:01:08]} 23. gxf5 {[%clk 0:01:39]}  exf5 {[%clk 0:01:08]} 24. f4 {[%clk 0:01:39]}  Nxe5 {[%clk 0:00:55]} 25. fxe5 {[%clk 0:01:36]}  Bc8 {[%clk 0:00:51]} 26. Qg2 {[%clk 0:01:36]}  h6 {[%clk 0:00:44]} 27. Qxd5+ {[%clk 0:01:33]}  Be6 {[%clk 0:00:43]} 28. Qg2 {[%clk 0:01:28]}  Rd8 {[%clk 0:00:42]} 29. Rf2 {[%clk 0:01:17]}  Kh8 {[%clk 0:00:41]} 30. Raf1 {[%clk 0:01:14]}  Bd5 {[%clk 0:00:36]} 31. e4 {[%clk 0:01:11]}  fxe4 {[%clk 0:00:34]} 32. Rxf8+ {[%clk 0:01:11]}  Bxf8 {[%clk 0:00:34]} 33. Bxe4 {[%clk 0:01:12]}  Bg8 {[%clk 0:00:25]} 34. d5 {[%clk 0:01:04]}  Bg7 {[%clk 0:00:22]} 35. e6 {[%clk 0:01:01]}  Qxa4 {[%clk 0:00:21]} 36. e7 {[%clk 0:00:52]}  Re8 {[%clk 0:00:16]} 37. d6 {[%clk 0:00:52]}  Rc8 {[%clk 0:00:07]} 38. Bf5 {[%clk 0:00:42]} 1-0


[Site "https://www.chess.com"]

[Event "Titled Tuesday Blitz July 18 Late 2023"]
[White "NigelDwarf"]
[Black "Zhigalko, Sergei"]
[BlackFideId "13502956"]
[WhiteElo "2465"]
[BlackElo "2889"]
[Result "0-1"]
[Round "1"]
[TimeControl "180+2"]
[Date "2023.07.18"]
[WhiteClock "0:00:10"]
[BlackClock "0:00:41"]
[Board "33"]

1. Nf3 {[%clk 0:03:00]}  d5 {[%clk 0:02:59]} 2. c4 {[%clk 0:03:00]}  d4 {[%clk 0:02:59]} 3. b4 {[%clk 0:02:58]}  Bg4 {[%clk 0:02:59]} 4. e3 {[%clk 0:02:56]}  e5 {[%clk 0:02:58]} 5. c5 {[%clk 0:02:51]}  Nf6 {[%clk 0:02:56]} 6. h3 {[%clk 0:02:50]}  Bxf3 {[%clk 0:02:52]} 7. gxf3 {[%clk 0:02:47]}  Nc6 {[%clk 0:02:44]} 8. b5 {[%clk 0:02:37]}  Ne7 {[%clk 0:02:39]} 9. Rg1 {[%clk 0:02:36]}  Ng6 {[%clk 0:02:37]} 10. Ba3 {[%clk 0:02:30]}  Be7 {[%clk 0:02:35]} 11. Bc4 {[%clk 0:02:29]}  O-O {[%clk 0:02:35]} 12. d3 {[%clk 0:02:20]}  Nd5 {[%clk 0:02:25]} 13. Qb3 {[%clk 0:02:14]}  c6 {[%clk 0:02:14]} 14. exd4 {[%clk 0:01:51]}  exd4 {[%clk 0:02:08]} 15. Bxd5 {[%clk 0:01:51]}  cxd5 {[%clk 0:02:06]} 16. Nd2 {[%clk 0:01:46]}  Rc8 {[%clk 0:02:05]} 17. Rc1 {[%clk 0:01:43]}  Bg5 {[%clk 0:01:58]} 18. Rc2 {[%clk 0:01:26]}  Re8+ {[%clk 0:01:58]} 19. Kd1 {[%clk 0:01:25]}  Nf4 {[%clk 0:01:52]} 20. h4 {[%clk 0:01:09]}  Bxh4 {[%clk 0:01:48]} 21. Rg4 {[%clk 0:01:02]}  Ne2 {[%clk 0:01:41]} 22. Bb2 {[%clk 0:00:42]}  Bxf2 {[%clk 0:01:28]} 23. Ne4 {[%clk 0:00:32]}  dxe4 {[%clk 0:00:59]} 24. Rxe2 {[%clk 0:00:32]}  Bh4 {[%clk 0:00:52]} 25. Reg2 {[%clk 0:00:32]}  Bf6 {[%clk 0:00:51]} 26. fxe4 {[%clk 0:00:26]}  Rxc5 {[%clk 0:00:51]} 27. Qb4 {[%clk 0:00:23]}  b6 {[%clk 0:00:49]} 28. Rxg7+ {[%clk 0:00:10]}  Bxg7 {[%clk 0:00:48]} 29. Qxd4 {[%clk 0:00:09]}  Qxd4 {[%clk 0:00:45]} 30. Bxd4 {[%clk 0:00:09]}  Rce5 {[%clk 0:00:45]} 31. Bxe5 {[%clk 0:00:08]}  Rxe5 {[%clk 0:00:46]} 32. a4 {[%clk 0:00:08]}  Kf8 {[%clk 0:00:45]} 33. Kd2 {[%clk 0:00:09]}  Rc5 {[%clk 0:00:44]} 34. Rh2 {[%clk 0:00:09]}  h5 {[%clk 0:00:44]} 35. Ke3 {[%clk 0:00:09]}  Ke7 {[%clk 0:00:43]} 36. d4 {[%clk 0:00:09]}  Rc3+ {[%clk 0:00:44]} 37. Kf4 {[%clk 0:00:09]}  Bxd4 {[%clk 0:00:44]} 38. Rxh5 {[%clk 0:00:10]}  Ra3 {[%clk 0:00:43]} 39. Rd5 {[%clk 0:00:10]}  Bc5 {[%clk 0:00:41]} 0-1


[Site "https://www.chess.com"]